Cogmind - Beta 17.1 @@@ ROGUE MODE // 2026.08.29 @ 20:51:19 Player: Somberlain Result: Destroyed by Y-45 Defender with Beam Rifle Performance ------------- Evolutions (1) 500 Regions Visited (3) 600 Robots Destroyed (49) 245 Value Destroyed (1562) 1562 Prototype IDs (4) 80 Alien Tech Used (0) 0 Bonus (0) 0 TOTAL SCORE: 2987 Bonus ------- None Cogmind --------- Core Integrity 0/400 Matter 300/300 Energy 100/100 System Corruption 0% Temperature Cool (9) Movement Walking (120) Location -9/Storage Parts ------- > --- POWER (1) -------- (None) > --- PROPULSION (2) --- Aluminum Leg Aluminum Leg > --- UTILITY (4) ------ Heat Sink Small Storage Unit Signal Interpreter Experimental Targeting Computer > --- WEAPON (2) ------- Autogun Improved Light Cannon > --- INVENTORY (8) ---- Beam Rifle Spread Laser Plasma Cutter Peak State ------------ > --- POWER ------------ Light Deuterium Engine > --- PROPULSION ------- Aluminum Leg Aluminum Leg > --- UTILITY ---------- Heat Sink Small Storage Unit Signal Interpreter Experimental Targeting Computer > --- WEAPON ----------- Autogun Autogun > --- INVENTORY -------- Beam Rifle Spread Laser Improved Light Cannon Plasma Cutter [Rating: 18] Favorites ----------- Power Improved Ion Engine Engine Improved Ion Engine Propulsion Aluminum Leg Treads Light Treads Leg Aluminum Leg Flight Unit Improved Flight Unit Utility Improved Heat Sink Device Improved Heat Sink Storage Medium Storage Unit Processor Signal Interpreter Weapon Particle Gun Energy Gun Particle Gun Ballistic Gun Autogun Ballistic Cannon Improved Light Cannon Special Weapon Plasma Cutter Impact Weapon Hammer Build | -11 -10 -9 -9 ------- Run | Yrd Mat Mat Sto Slots Evolved 2 | . . 2 . Power . | . . . . Propulsion . | . . . . Utility 2 | . . 2 . Weapon . | . . . . Parts Attached 42 | 6 11 16 9 Power 7 | 1 1 4 1 Engine 7 | 1 1 4 1 Core . | . . . . Reactor . | . . . . Propulsion 16 | 2 3 5 6 Treads 1 | . . . 1 Leg 14 | 2 3 5 4 Wheel . | . . . . Hover . | . . . . Flight 1 | . . . 1 Utility 9 | 1 3 3 2 Device 5 | . 2 2 1 Storage 2 | 1 1 . . Processor 2 | . . 1 1 Hackware . | . . . . Protection . | . . . . Artifact . | . . . . Weapon 10 | 2 4 4 . Energy Gun 3 | 1 2 . . Energy Cannon . | . . . . Ballistic Gun 3 | 1 . 2 . Ballistic Cannon 1 | . . 1 . Launcher . | . . . . Special Weapon 2 | . 1 1 . Impact Weapon 1 | . 1 . . Slashing Weapon . | . . . . Piercing Weapon . | . . . . Special Melee Weapon . | . . . . Unidentified Prototypes 2 | . . . 2 Parts Lost 9 | . . 6 3 Power 3 | . . 2 1 Propulsion 1 | . . 1 . Utility 3 | . . 2 1 Weapon 2 | . . 1 1 Highest Loss Streak 3 | . . 3 2 To Critical Strikes . | . . . . Average Backups 4 | . 3 5 6 Power . | . . . . Propulsion 1 | . . 1 1 Utility 1 | . 1 1 . Weapon 1 | . . 1 2 Tool/Special . | . . . . Unused Backups 2 | . . . 2 Power . | . . . . Propulsion . | . . . . Utility . | . . . . Weapon 2 | . . . 2 Tool/Special . | . . . . Average Slot Usage (%) 96 | . 97 97 86 Engine 11 | . 14 10 9 Leg 24 | . 28 21 21 Device 16 | . 12 22 8 Storage 12 | . 14 11 11 Processor 5 | . . 9 12 Energy Gun 15 | . 21 14 . Ballistic Gun 7 | . 5 5 20 Peak Build Rating 18 | 6 11 17 18 Average Rating 12 | 4 9 14 13 On Entrance 7 | . 6 11 14 Avg Prop Armor Cover (%) 6 | . . . 6 Naked Turns . | . . . . Heaviest Build 27 | 14 22 26 27 Greatest Support 20 | 20 20 20 20 Greatest Overweight (x) 2 | . 1 2 2 Average Overweight (x) . | . . . . Largest Inventory Capacity 10 | 8 10 10 10 Average Capacity 9 | 6 9 10 9 Most Carried 10 | . 7 9 10 Average Carried 4 | . 3 5 6 Final Capacity 10 | 8 10 10 8 Final Carried 8 | . 6 8 3 Class Distribution -------------------- 68% | Scavenger-Mutant 31% | Mutant Dominant Class ---------------- Mutant | -10/Materials Scavenger-Mutant | -9/Materials Mutant | -9/Storage Resources | -11 -10 -9 -9 ----------- Run | Yrd Mat Mat Sto Matter Collected 1347 | 225 269 484 369 Remotely . | . . . . Salvage Created 1714 | . 449 938 327 Parts 111 | . 32 53 26 Haulers Intercepted . | . . . . Recyclers Shooed 1 | . 1 . . Parts Field Recycled . | . . . . Retrieved Matter . | . . . . Parts Self-Destructed . | . . . . Prevented . | . . . . Parts Restored . | . . . . Kills | -11 -10 -9 -9 ------- Run | Yrd Mat Mat Sto Combat Hostiles Destroyed 41 | . 9 25 7 Guns 35 | . 9 20 6 Cannons 5 | . . 4 1 Classes Destroyed 6 | . 3 3 . Worker 1 | . . 1 . Tunneler 1 | . 1 . . Watcher 6 | . 2 4 . Swarmer 6 | . . 6 . Grunt 25 | . 9 12 4 Sentry 10 | . . 7 3 Best Kill Streak 8 | . 3 8 2 Combat Bots Only 6 | . 2 6 2 Max Kills in Single Turn 2 | . 1 2 1 Gunslinging 1 | . . 1 . Exploded . | . . . . Melee . | . . . . Uniques/NPCs Destroyed . | . . . . Combat | -11 -10 -9 -9 -------- Run | Yrd Mat Mat Sto Hostile Shots Fired 257 | . 44 173 40 Missed 82 | . 16 55 11 Hits 175 | . 28 118 29 Projectile 175 | . 28 118 29 AOE 1 | . . . 1 Critical Strikes 5 | . 1 3 1 Damage Taken 2254 | . 350 1432 472 Core 464 | . 51 376 37 Absorbed by Shields . | . . . . Regen/Repaired (Parts) 228 | . 105 123 . Core Remaining (%) 89 | 100 79 . . Volleys Fired 207 | . 50 125 32 Largest 2 | . 2 2 2 Hottest 130 | . 130 130 56 Shots Fired 380 | . 96 228 56 Gun 328 | . 92 189 47 Cannon 36 | . . 27 9 Launcher . | . . . . Special 16 | . 4 12 . Kinetic 163 | . 32 75 56 Thermal 217 | . 64 153 . Explosive . | . . . . Electromagnetic . | . . . . Robot Hit Streak 10 | . 10 10 9 Robot Miss Streak 4 | . 3 4 3 Penetration Max . | . . . . Secondary Targets 4 | . 1 2 1 Max Gunslinging Chain 1 | . 1 1 1 Shots Hit Robots 216 | . 58 132 26 Core Hits 78 | . 22 43 13 Critical Kills . | . . . . Critical Parts Destroyed . | . . . . Critical Strikes 6 | . 4 2 . Burn 5 | . 4 1 . Blast 1 | . . 1 . Melee Attacks 2 | . 2 . . Impact 2 | . 2 . . Slashing . | . . . . Piercing . | . . . . Sneak Attacks . | . . . . Combat Hostiles . | . . . . Follow-up Attacks . | . . . . Damage Inflicted 3415 | . 823 2184 408 Guns 3031 | . 812 1833 386 Cannons 365 | . . 343 22 Explosions . | . . . . Melee . | . . . . Ramming 14 | . 6 8 . Kinetic 1456 | . 250 798 408 Thermal 1945 | . 567 1378 . Explosive . | . . . . Electromagnetic . | . . . . Impact . | . . . . Slashing . | . . . . Piercing . | . . . . Highest Corruption . | . . . . Average Corruption . | . . . . Corruption Purged . | . . . . Corruption Blocked . | . . . . Overload Shots . | . . . . Overflow Damage 9 | . . 9 . Projectiles 9 | . . 9 . Explosions . | . . . . Melee . | . . . . Knockbacks 4 | . . 4 . Impact . | . . . . Kinetic 4 | . . 4 . Secondary . | . . . . Self-Inflicted Damage . | . . . . Shots . | . . . . Rammed . | . . . . Targets Rammed 6 | . 3 3 . Kicked 6 | . 3 3 . Crushed . | . . . . Highest Temperature 318 | . 147 318 49 Average Temperature 70 | . 44 95 17 Received Heat Transfer 1017 | . 219 621 177 Effects 2 | . . 2 . Interference 2 | . . 2 . Siege Activations . | . . . . Martial Activations . | . . . . Shielding Activations . | . . . . Robots Disrupted . | . . . . Combat Hostiles . | . . . . Robots Corrupted . | . . . . Combat Hostiles . | . . . . Parts Fried . | . . . . Impact Corruptions . | . . . . Robots Melted 1 | . . 1 . Combat Hostiles 1 | . . 1 . Parts Melted 7 | . 2 5 . Heat Transferred 5156 | . 1752 3404 . Parts Sabotaged . | . . . . Parts Stolen . | . . . . Parts Stripped . | . . . . Power Chain Reactions . | . . . . Alert | -11 -10 -9 -9 ------- Run | Yrd Mat Mat Sto Maximum Alert Level 1 | . . 1 . Low Security (%) 96 | 100 100 91 100 Level 1 3 | . . 8 . Level 2 . | . . . . Level 3 . | . . . . Level 4 . | . . . . Level 5 . | . . . . High Security . | . . . . Max Security . | . . . . Peak Influence 286 | . 57 286 85 Initial 55 | . . 9 55 Average 42 | . 10 73 39 Influence Increases 1135 | . 281 672 182 Destroy 0b10 Robot/C 820 | . 180 500 140 Destroy 0b10 Robot/NC 40 | . 15 25 . Destroy Leader 212 | . 44 128 40 Successful Hack 13 | . 10 3 . Disable Machine 30 | . 15 15 . Destroy Structure 5 | . 2 1 2 Lose Combat Pursuer 15 | . 15 . . Influence Decreases 1105 | . 258 563 284 Entered New Map 91 | . . 14 77 Time Decay 784 | . 258 339 187 Lost Part 80 | . . 60 20 Purge Threat 150 | . . 150 . Squads Dispatched 3 | . 1 2 . Investigation . | . . . . Extermination . | . . . . Reinforcement 3 | . 1 2 . Assault . | . . . . Garrison . | . . . . Intercept . | . . . . Searches Triggered . | . . . . Construction Impeded . | . . . . Haulers Reinforced . | . . . . Active Scanning Responses . | . . . . Cargo Convoy Interrupts . | . . . . Stealth | -11 -10 -9 -9 --------- Run | Yrd Mat Mat Sto Distress Signals 9 | . 1 6 2 Communications Jammed . | . . . . Distress Signals . | . . . . Times Spotted 79 | . 21 46 12 Peak Tracking Total 6 | . 3 6 4 Tactical Retreats 1 | . 1 . . Traps | -11 -10 -9 -9 ------- Run | Yrd Mat Mat Sto Traps Triggered . | . . . . Indirectly . | . . . . Trap Hack Attempts . | . . . . Triggered . | . . . . Disarmed 4 | . 4 . . Reprogrammed . | . . . . Reused . | . . . . Traps Extracted . | . . . . Installed . | . . . . Triggered . | . . . . Machines | -11 -10 -9 -9 ---------- Run | Yrd Mat Mat Sto Machines Disabled 2 | . 1 1 . Max in Single Turn 1 | . 1 1 . Machines Repaired . | . . . . Machines Dismantled . | . . . . Machines Sabotaged . | . . . . Overloaded Fab Kills . | . . . . Hacking | -11 -10 -9 -9 --------- Run | Yrd Mat Mat Sto Machines Accessed 14 | . 6 7 1 Terminals 11 | . 5 5 1 Fabricators . | . . . . Repair Stations 3 | . 1 2 . Recycling Units . | . . . . Scanalyzers . | . . . . Garrison Access . | . . . . Total Hacks 38 | . 20 16 2 Successful 14 | . 7 6 1 Failed 24 | . 13 10 1 Catastrophic 8 | . 3 5 . Database Lockouts . | . . . . Manual 14 | . 6 6 2 Terminals 25 | . 13 10 2 Fabricators . | . . . . Repair Stations 13 | . 7 6 . Recycling Units . | . . . . Scanalyzers . | . . . . Garrison Access . | . . . . Terminal Hacks 6 | . 3 2 1 Prototype ID Bank 1 | . 1 . . Open Door 1 | . . . 1 Unreport Threat 1 | . . 1 . Disarm Traps 1 | . 1 . . Registered Components 2 | . 1 1 . Fabricator Hacks . | . . . . Repair Station Hacks 8 | . 4 4 . Scan Component 4 | . 2 2 . Repair 4 | . 2 2 . Recycling Unit Hacks . | . . . . Scanalyzer . | . . . . Garrison Access Hacks . | . . . . Unauthorized Hacks . | . . . . Terminals . | . . . . Fabricators . | . . . . Repair Stations . | . . . . Recycling Units . | . . . . Scanalyzers . | . . . . Garrison Access . | . . . . Data Cores Recovered . | . . . . Used . | . . . . Hacking Detections 14 | . 6 7 1 Full Trace Events 2 | . 1 1 . Feedback Events . | . . . . Feedback Blocked . | . . . . Robot Schematics Acquired . | . . . . Robots Built . | . . . . Authchips . | . . . . Time . | . . . . Total Robot Build Rating . | . . . . Part Schematics Acquired . | . . . . Parts Built . | . . . . Authchips . | . . . . Time . | . . . . Total Part Build Rating . | . . . . Part Studies Acquired . | . . . . Parts Repaired 4 | . 2 2 . Time 128 | . 64 64 . Parts Recycled . | . . . . Recycled Matter . | . . . . Retrieved Matter . | . . . . Retrieved Components . | . . . . Parts Scanalyzed . | . . . . Part Schematics Acquired . | . . . . Parts Damaged . | . . . . Bothacking | -11 -10 -9 -9 ------------ Run | Yrd Mat Mat Sto Used RIF Installer . | . . . . Robots Hacked . | . . . . Non-combat . | . . . . Combat . | . . . . Robot Hacks Applied . | . . . . Relay Couplers Released . | . . . . Fabnet Peak Effective % . | . . . . Robots Rewired . | . . . . Allies Hacked . | . . . . Hacks Repelled . | . . . . Allies | -11 -10 -9 -9 -------- Run | Yrd Mat Mat Sto Total Allies . | . . . . Largest Group . | . . . . Highest-Rated Group . | . . . . Highest-Rated Ally . | . . . . Total Orders . | . . . . Ally Attacks . | . . . . Total Damage . | . . . . Kills . | . . . . Allies Corrupted . | . . . . Allies Melted . | . . . . Intel | -11 -10 -9 -9 ------- Run | Yrd Mat Mat Sto Active Infowar (turns) 852 | . . 852 . Sensors 852 | . . 852 . Robot Analysis Total . | . . . . Derelict Logs Recovered . | . . . . Drone Launches . | . . . . Drone Recoveries . | . . . . Exploration | -11 -10 -9 -9 ------------- Run | Yrd Mat Mat Sto Turns Passed 3418 | 49 1413 1568 388 Spaces Moved 1429 | 36 647 584 162 Core 4 | 4 . . . Treads 12 | . . . 12 Legs 1413 | 32 647 584 150 Wheels . | . . . . Hover . | . . . . Flight . | . . . . Fastest Speed 50 | 50 120 120 120 Average Speed 176 | 112 172 185 173 Slowest Speed 260 | 120 190 260 260 Overloaded Moves . | . . . . Propulsion Burnouts . | . . . . Robots Hopped . | . . . . Potential Cave-ins . | . . . . Cave-ins Triggered . | . . . . Exploration Rate (%) 42 | 3 90 51 25 Regions Visited 3 Branch Regions 1 Pre-discovered Areas . | . . . . Known Exits Taken 1 | . . 1 . Unknown Exits Taken 2 | 1 1 . . Scrap Searched . | . . . . Spaces Dug 3 | . 1 . 2 Terrain Destroyed 4 | . 1 1 2 Melee 1 | . 1 . . Projectile 3 | . . 1 2 AOE . | . . . . Terrain Rammed . | . . . . Walls Destroyed . | . . . . Machines Disabled . | . . . . Actions | -11 -10 -9 -9 --------- Run | Yrd Mat Mat Sto Total 1931 | 41 841 828 221 Wait 196 | . 112 84 . Move 1426 | 35 646 583 162 Hop . | . . . . Pick Up 12 | . 5 7 . Fast Attach 18 | 6 4 4 4 Attach 9 | . 1 6 2 Detach 3 | . 1 1 1 Swap 31 | . 10 11 10 Drop 21 | . 7 4 10 Fire 207 | . 50 125 32 Melee 2 | . 2 . . Ram . | . . . . Kick 6 | . 3 3 . Crush . | . . . . Escape Stasis . | . . . . Rewire . | . . . . Trap . | . . . . Miscellaneous . | . . . . Route ------- -11/Scrapyard -10/Materials (discovered 5 exits: *Mat x3 / [*Min x2]) -9/Materials (discovered 4 exits: [*Mat] / *Min / *Sto x2) -9/Storage History --------- Turn | Location | Event 3 | -11/Scrapyard | Discovered new exit (range 16) 50 | -11/Scrapyard | Entered Materials 203 | -10/Materials | Discovered new exit (range 4) 300 | -10/Materials | Build established: Mutant 358 | -10/Materials | Discovered new exit (range 12) 524 | -10/Materials | Discovered new exit (range 8) 733 | -10/Materials | Discovered new exit (range 3) 1014 | -10/Materials | Repaired Particle Gun 1047 | -10/Materials | Repaired Particle Gun 1144 | -10/Materials | Build established: Scavenger-Mutant 1336 | -10/Materials | Discovered new exit (range 4) 1463 | -10/Materials | Entered another Materials area 1463 | -9/Materials | Evolved 2 slots: Utility x2 1465 | -9/Materials | Discovered new exit (range 13) 1837 | -9/Materials | Identified exit to Storage 2015 | -9/Materials | Repaired Particle Gun 2189 | -9/Materials | Discovered new exit (range 15) 2279 | -9/Materials | Discovered exit to Storage (range 15) 2331 | -9/Materials | Core integrity fell below 50% 2355 | -9/Materials | Lost 3 parts (1p1u1w) 2387 | -9/Materials | Identified exit to Mines 2470 | -9/Materials | Repaired Particle Gun 2616 | -9/Materials | Discovered new exit (range 16) 2740 | -9/Materials | Core integrity fell below 20% 3031 | -9/Materials | Entered Storage 3375 | -9/Storage | Found Prototype Processor 3375 | -9/Storage | Identified Exp. Targeting Computer 3419 | -9/Storage | Destroyed by Y-45 Defender with Beam Rifle Last Messages --------------- 03305_ U-05 Engineer builds a Wall. 03309_ Dropped Lgt. Treads. 03309_ U-05 Engineer builds a Wall. 03314_ U-05 Engineer builds a Door. 03315_ U-05 Engineer builds a Wall. 03316_ U-05 Engineer lays Concrete. 03319_ Acquired 48 matter. 03373_ Connecting with Door Terminal... >>Open(Door) Sealed Heavy Doors opened. 03375_ Acquired Prototype Processor. 03375_ Identified Exp. Targeting Computer. 03379_ Lgt. Deuterium Engine destroyed. 03383_ Y-45 Defender destroyed. 03385_ Autogun destroyed. 03387_ Y-45 Defender destroyed. 03406_ K-01 Serf collects debris. 03415_ Acquired 45 matter. 03416_ K-01 Serf collects debris. 03417_ Acquired 22 matter. Map ----- +----------------------------------------------------+ | ???????????????????????????????????? | | ???????????????????????????????????? | | ???????????????????????????????????? | | ???????????????????????????????????? | | ???????????????????????????????????? | | ???????????????????????????????????? | | ???????????????????????????????????? | | ???????????????????????????###?????? | | ???????????????????????????# #?????? | | ??????????????????????????## #?????? | | ??????????????????????????#T #?????? | | ?????????????????????????###+####??? | | ?????????????############# #??? | | ?????????????# # #??? | | ?????????????# + #??? | | ?????????????# # #??? | | ?????????????# + #??? | | ?????????????# # ^ ^^ #??? | | ?????????????# # #??? | | ?????????????# # ##+#### | | ?????????????############# # # | | ?????????????????????????# # # | | ?????????????????????????# # # | | ?????????????????????????#!! # # | | ?????????????????######### ! # # | | ??????????Y @= # # | | ?????????????????### #####%k + # | | ?????????????????????????#[ # # | | ?????????????????????????# # # | | ?????????????????????????# # # | | ?????????????????????????# # # | | ?????????????????????????# # # | | ?????????????????????????# ####### | | ?????????????????? ????# #?????? | | ????????????????+? ""??# #?????? | | ????????????????# """ # #?????? | | ????????????????# + ####### | | ????????????????# """ # # # | | ????????????????#? ""??# # [# | | ?????????????????? ????# # # | | ?????????????????????????# # """ # | | ?????????????????????????# # """ # | | ????????????????########?# # """%! | | ???????????????? ?# #= * [ | | ????????????????? # =#= = | | ??????????????????"" """ # [ #= ! = | | ??????????????????"" """ + ! +! | | ??????????????????"" """ # !# [ | | ????????????????? # !#= | | ???????????????? ?# ## | +----------------------------------------------------+ Best States ------------- Heat Dissipation 56 Energy Generation 14 Energy Capacity 265 Matter Stores 300 Matter Capacity 300 Sight Range 16 Robot Scan Range 14 Terrain Scan Density 10 Evasion (%) 55 Targeting Accuracy 12 Recoil Reduction 1 Item Schematics ----------------- None Robot Schematics ------------------ None Fabricated ------------ Nothing Repaired ---------- Particle Gun | 26% | -10/Materials Particle Gun | 33% | -10/Materials Particle Gun | 14% | -9/Materials Particle Gun | 21% | -9/Materials Studied --------- None Alien Tech Used ----------------- None Achievements -------------- None Challenges ------------ None Game ------ Seed StormRapidBuckler Manual? 0 Play Time 00:25:36 Cumulative 37.3 hours Start 2026.08.29 @ 20:29:33 End 2026.08.29 @ 20:51:19 Sessions 1 Manual Loads 0 Difficulty Rogue Special Mode None Game No. 57 Rogue 57 Adventurer 0 Explorer 0 Win Type - Total 0 Types 0/0/0/0/0/0/0/0/0/0 Lore% 26 Gallery% 29 Achievement% 27 Wizard Run 0 Options --------- Layout 1 ASCII 0 Keyboard 0 Movement Mouse Keybinds 0 Fullscreen 2 Font 24/Smallcaps Map View 50x35 Zoom Use 0% Tactical HUD 1 Map Filters NONE Filters NONE Steam 1 RUN: 093bc8b7-2503-478e-96c8-d88517f3aa49